bitfinex-derivatives/quotes_BNBF0:USTF0_20250807
["timestamp","ask_amount","ask_price","bid_price","bid_amount"]
[1754585059929,0.8511382,773.14,772.38,0.22515819]
[1754585060129,0.8511382,773.13,772.38,0.22515819]
[1754585060328,0.8511382,773.12,772.38,0.22515819]
[1754585060530,0.8511382,773.11,772.38,0.22515819]
[1754585060728,0.85144307,773.1,772.38,0.22515819]
[1754585061031,0.85144307,773.09,772.38,0.22515819]
[1754585061232,0.85144307,773.08,772.38,0.22515819]
[1754585061432,0.85144307,773.07,772.38,0.22515819]
[1754585061731,0.85144307,773.06,772.38,0.22515819]
[1754585061929,0.85144307,773.05,772.38,0.22515819]
[1754585062132,0.85144307,773.04,772.38,0.22515819]
[1754585062334,0.85144307,773.03,772.38,0.22515819]
[1754585062533,0.85144307,773.02,772.22,0.86896694]
[1754585062732,0.86330119,773.27,772.3,0.22518223]
[1754585062932,0.8517421,773.26,772.3,0.22518223]
[1754585063137,0.8517421,773.25,772.3,0.22518223]
[1754585063331,0.8517421,773.24,772.3,0.22518223]
[1754585063637,0.8517421,773.23,772.3,0.22518223]
[1754585063838,0.8517421,773.22,772.3,0.22518223]
[1754585064134,1.5697421,773.21,772.3,0.22518223]
[1754585064337,0.8517421,773.2,772.3,0.22518223]
[1754585066541,0.718,773.21,772.3,0.22518223]
[1754585066741,0.85217471,773.2,772.3,0.22518223]
[1754585066944,0.85217471,773.19,772.3,0.22518223]
[1754585067240,0.85217471,773.18,772.3,0.22518223]
[1754585067444,0.85217471,773.17,772.3,0.22518223]
[1754585067644,0.85217471,773.16,772.3,0.22518223]
[1754585067844,0.85217471,773.15,772.3,0.22518223]
[1754585068041,0.85217471,773.14,772.3,0.22518223]
[1754585068240,0.85217471,773.13,772.3,0.22518223]
[1754585068445,0.85217471,773.12,772.3,0.22518223]
[1754585068745,1.71217471,773.11,772.3,1.09414917]
[1754585068946,0.85217471,773.1,772.3,1.09414917]
[1754585070445,0.85217471,773.1,772.31,0.86896694]
[1754585071144,0.85217471,773.1,772.3,1.09414917]
[1754585071342,0.85217471,773.1,772.31,0.86896694]
[1754585072544,0.85217471,773.1,772.3,0.22518223]
[1754585072848,0.85217471,773.1,772.24,0.86896694]
[1754585075247,0.86,773.11,772.24,0.86896694]
[1754585075544,0.85270477,773.1,772.24,0.86896694]
[1754585075744,0.85270477,773.09,772.26,0.86896694]
[1754585075948,0.85270477,773.08,772.26,0.86896694]
[1754585076245,0.85270477,773.07,772.26,0.86896694]
[1754585076546,0.85270477,773.06,772.27,0.86896694]
[1754585076743,0.85270477,773.05,772.27,0.86896694]
[1754585076947,0.85270477,773.04,772.27,0.86896694]
[1754585077146,0.85270477,773.03,772.27,0.86896694]
[1754585077444,0.85270477,773.02,772.28,0.86896694]
[1754585077748,0.85270477,773.01,772.27,0.86896694]
[1754585077948,0.85270477,773.0,772.27,0.86896694]
[1754585078149,0.85270477,772.99,772.14,0.86896694]
[1754585078345,0.85270477,772.98,772.13,0.86896694]
[1754585078550,0.85270477,772.97,772.13,0.86896694]
[1754585078851,0.85270477,772.96,772.12,0.86896694]
[1754585079150,0.85270477,772.95,772.1,0.86896694]
[1754585079345,0.85270477,772.94,772.1,0.86896694]
[1754585079543,0.85270477,772.93,772.1,0.86896694]
[1754585079748,0.85270477,772.92,772.1,0.86896694]
[1754585079947,0.85270477,772.91,772.1,0.86896694]
[1754585080148,0.85270477,772.9,772.1,0.86896694]
[1754585080445,0.85270477,772.89,772.12,0.86896694]
[1754585080650,0.85270477,772.88,772.12,0.86896694]
[1754585080848,0.85270477,772.87,772.11,0.86896694]
[1754585081047,0.85270477,772.86,772.11,0.86896694]
[1754585081353,0.86,773.11,772.05,0.22521211]
[1754585081354,0.85249482,772.85,772.06,0.86896694]
[1754585081551,0.85249482,772.84,772.06,0.86896694]
[1754585081751,0.85249482,772.84,772.05,0.22521211]
[1754585081752,0.86,773.11,772.07,0.86896694]
[1754585082049,0.85184518,773.1,772.07,0.86896694]
[1754585082352,0.85184518,773.09,772.07,0.86896694]
[1754585082552,0.85184518,773.08,772.07,0.86896694]
[1754585082852,0.85184518,773.07,772.07,0.86896694]
[1754585083050,0.85184518,773.06,772.09,0.86896694]
[1754585083350,0.85184518,773.05,772.07,0.86896694]
[1754585083553,0.85184518,773.04,772.07,0.86896694]
[1754585083750,0.85184518,773.03,772.05,0.22521211]
[1754585083954,0.85184518,773.02,772.05,0.22521211]
[1754585084255,0.85203776,773.01,772.05,0.22521211]
[1754585084449,0.85203776,773.0,772.05,0.22521211]
[1754585084754,0.85198299,772.99,772.05,0.22521211]
[1754585084949,0.85198299,772.98,772.05,0.22521211]
[1754585085156,0.85198299,772.97,772.05,0.22521211]
[1754585085450,0.85198299,772.96,772.05,0.22521211]
[1754585085654,0.85198299,772.95,772.05,1.09417905]
[1754585085850,0.85198299,772.94,772.05,1.09417905]
[1754585086152,0.85198299,772.93,772.05,1.09417905]
[1754585086348,0.85198299,772.92,772.05,0.22521211]
[1754585086553,0.85198299,772.91,772.05,0.22521211]
[1754585086752,0.85198299,772.9,772.05,0.22521211]
[1754585086952,0.85198299,772.89,772.05,0.22521211]
[1754585087153,0.85198299,772.88,772.05,0.22521211]
[1754585087356,0.85198299,772.87,772.05,0.22521211]
[1754585087549,0.85198299,772.86,772.05,0.22521211]
[1754585087751,0.85198299,772.85,772.05,0.22521211]
[1754585087954,0.85198299,772.84,772.05,0.22521211]
[1754585088155,0.85198299,772.83,772.05,0.22521211]
[1754585088351,0.85198299,772.82,772.05,0.22521211]
[1754585088650,0.85198299,772.81,772.05,0.22521211]
[1754585088854,0.85198299,772.8,772.05,0.22521211]
[1754585089055,0.85198299,772.79,772.05,0.22521211]
[1754585089354,0.85198299,772.78,772.05,0.22521211]
[1754585089551,0.85198299,772.77,772.05,0.22521211]
[1754585089852,0.86,773.11,772.1,0.86896694]
[1754585089853,0.85198299,772.76,772.1,0.86896694]
[1754585090050,0.86,773.11,772.05,0.22521211]
[1754585090051,0.85112488,772.75,772.05,0.22521211]
[1754585090255,0.85112488,772.74,772.05,0.22521211]
[1754585090451,0.85112488,772.73,772.05,0.22521211]
[1754585090657,0.85112488,772.72,772.05,0.22521211]
[1754585090957,0.86330119,773.07,772.0,0.86896694]
[1754585091257,0.86330119,772.99,771.97,0.22526896]
[1754585091556,0.85117563,772.98,771.97,0.22526896]
[1754585091751,0.85117563,772.97,771.97,0.22526896]
[1754585091953,0.85117563,772.96,771.97,0.22526896]
[1754585092151,0.86330119,772.99,771.97,0.22526896]
[1754585092152,0.85117563,772.95,771.97,0.22526896]
[1754585092350,0.85117563,772.94,771.97,0.22526896]
[1754585092556,0.85117563,772.93,771.97,0.22526896]
[1754585092758,0.85117563,772.92,771.97,0.22526896]
[1754585092955,0.86330119,773.0,771.97,0.22526896]
[1754585093257,0.86330119,772.96,771.97,0.22526896]
[1754585093557,1.71422175,772.95,771.97,0.22526896]
[1754585093757,0.85092056,772.94,771.97,0.22526896]
[1754585093956,0.85092056,772.93,771.97,0.22526896]
[1754585094159,0.86330119,772.95,771.97,0.22526896]
[1754585094160,0.85092056,772.92,771.97,0.22526896]
[1754585094359,0.85092056,772.91,771.97,0.22526896]
[1754585094558,0.85092056,772.9,771.97,0.22526896]
[1754585094755,0.85092056,772.89,771.97,0.22526896]
[1754585094958,0.85092056,772.88,771.97,0.22526896]
[1754585095153,0.85092056,772.87,771.97,0.22526896]
[1754585095360,0.85092056,772.86,771.97,0.22526896]
[1754585095559,0.85092056,772.85,771.72,0.86896694]
[1754585095760,0.85092056,772.84,771.82,0.2252923]
[1754585095959,0.85092056,772.83,771.82,0.2252923]
[1754585096256,0.85092056,772.82,771.82,0.2252923]
[1754585096460,0.85092056,772.81,771.82,0.2252923]
[1754585096660,0.85092056,772.8,771.82,0.2252923]
[1754585096956,0.85092056,772.79,771.82,0.2252923]
[1754585097156,0.85092056,772.78,771.82,0.2252923]
[1754585097356,0.85092056,772.77,771.82,0.2252923]
[1754585097661,0.85092056,772.76,771.82,0.2252923]
[1754585097855,0.85092056,772.75,771.82,0.2252923]
[1754585098157,0.85092056,772.74,771.82,0.2252923]
[1754585098359,0.85092056,772.73,771.82,0.2252923]
[1754585098560,0.85092056,772.72,771.82,0.2252923]
[1754585098855,0.85092056,772.71,771.82,0.2252923]
[1754585099061,0.85092056,772.7,771.82,0.2252923]
[1754585099259,0.85092056,772.69,771.82,0.2252923]
[1754585099461,0.85092056,772.68,771.82,0.2252923]
[1754585099656,0.85092056,772.67,771.82,0.2252923]
[1754585099860,0.85092056,772.66,771.82,0.2252923]
[1754585100058,0.85092056,772.65,771.82,0.2252923]
[1754585100257,0.85092056,772.64,771.82,0.2252923]
[1754585100459,0.85092056,772.63,771.82,0.2252923]
[1754585100659,0.85092056,772.62,771.82,0.2252923]
[1754585100860,0.85092056,772.61,771.82,0.2252923]
[1754585101060,0.85092056,772.6,771.82,0.2252923]
[1754585101359,0.85014879,772.59,771.82,0.2252923]
[1754585101560,0.85014879,772.58,771.82,0.2252923]
[1754585101864,0.85012307,772.57,771.82,0.2252923]
[1754585102164,0.85012307,772.56,771.82,0.2252923]
[1754585102364,0.85012307,772.55,771.82,0.2252923]
[1754585102564,0.85012307,772.54,771.82,0.2252923]
[1754585102763,0.85012307,772.53,771.82,0.2252923]
[1754585102960,0.85012307,772.52,771.82,0.2252923]
[1754585103263,1.15457097,772.96,771.82,0.2252923]
[1754585103264,0.85012307,772.51,771.82,0.2252923]
[1754585103466,0.85012307,772.5,771.82,0.2252923]
[1754585103660,0.85012307,772.49,771.82,0.2252923]
[1754585103861,0.86330119,772.79,771.82,0.2252923]
[1754585104165,1.71305026,772.78,771.82,0.2252923]
[1754585104367,0.86330119,772.73,771.82,0.2252923]
[1754585104565,0.86330119,772.73,771.53,0.86896694]
[1754585104566,0.86330119,772.71,771.52,0.86896694]
[1754585104866,0.84974907,772.7,771.7,0.2253346]
[1754585105065,0.84974907,772.69,771.7,0.2253346]
[1754585105266,0.84974907,772.68,771.7,0.2253346]
[1754585105468,0.84974907,772.67,771.7,0.2253346]
[1754585105667,0.84974907,772.66,771.7,0.2253346]
[1754585105867,0.84974907,772.65,771.7,0.2253346]
[1754585106063,0.84974907,772.64,771.7,0.2253346]
[1754585106264,0.84974907,772.63,771.7,0.2253346]
[1754585106466,0.84974907,772.62,771.7,0.2253346]
[1754585106769,0.84974907,772.61,771.7,0.2253346]
[1754585106969,0.84974907,772.6,771.7,0.2253346]
[1754585107169,0.84974907,772.59,771.7,0.2253346]
[1754585107370,0.84974907,772.58,771.7,0.2253346]
[1754585107570,0.84974907,772.57,771.7,0.2253346]
[1754585107769,0.84974907,772.56,771.7,0.2253346]
[1754585107980,0.84974907,772.55,771.7,0.2253346]
[1754585108170,0.84974907,772.54,771.7,0.2253346]
[1754585108464,0.84974907,772.53,771.7,0.2253346]
[1754585108669,0.84974907,772.52,771.7,0.2253346]
[1754585108869,0.84974907,772.51,771.7,0.2253346]
[1754585109168,0.713,772.52,771.7,0.2253346]
[1754585109771,0.8491943,772.51,771.7,0.2253346]
[1754585110573,0.713,772.52,771.7,0.2253346]
[1754585111774,0.713,772.52,771.71,0.86896694]
[1754585111972,0.713,772.52,771.78,0.86896694]
[1754585112173,0.967,772.51,771.78,0.86896694]
[1754585112373,0.967,772.51,771.79,0.86896694]
[1754585112673,0.967,772.51,771.78,0.86896694]
[1754585113372,0.967,772.51,771.79,0.86896694]
[1754585114574,0.967,772.51,771.8,0.86896694]
[1754585115176,0.967,772.51,771.79,0.86896694]
[1754585115372,0.967,772.51,771.78,0.86896694]
[1754585115572,0.967,772.51,771.79,0.86896694]
[1754585116074,0.85082891,772.5,771.79,0.86896694]
[1754585117174,0.967,772.51,771.8,0.86896694]
[1754585119780,0.967,772.51,771.81,0.86896694]
[1754585120981,0.967,772.51,771.8,0.86896694]
[1754585121486,0.967,772.51,771.73,0.86896694]
[1754585121781,0.967,772.51,771.75,0.86896694]
[1754585121982,0.967,772.51,771.73,0.86896694]
[1754585122485,0.967,772.51,771.74,0.86896694]
[1754585122785,0.967,772.51,771.72,0.86896694]
[1754585122985,0.967,772.51,771.74,0.86896694]
[1754585123485,0.967,772.51,771.7,0.2253346]
[1754585125085,0.85160686,772.5,771.7,0.2253346]
[1754585125283,0.85160686,772.49,771.7,0.2253346]
[1754585125586,0.85160686,772.48,771.7,0.2253346]
[1754585125785,0.967,772.51,771.7,0.2253346]
[1754585125985,0.85164551,772.5,771.7,0.2253346]
[1754585126181,0.85164551,772.49,771.7,0.2253346]
[1754585126385,0.85164551,772.48,771.7,0.2253346]
[1754585126784,0.85167749,772.47,771.7,0.2253346]
[1754585126983,0.967,772.51,771.7,0.2253346]
[1754585127286,0.85168818,772.5,771.7,0.2253346]
[1754585127585,0.85168818,772.49,771.7,0.2253346]
[1754585127883,0.967,772.51,771.7,0.2253346]
[1754585127884,0.85168818,772.48,771.7,0.2253346]
[1754585128083,0.85168818,772.47,771.7,0.2253346]
[1754585128292,0.85168818,772.46,771.7,0.2253346]
[1754585128487,0.967,772.51,771.7,0.2253346]
[1754585128688,0.85191253,772.5,771.57,0.86896694]
[1754585128884,0.85191253,772.49,771.62,0.22537036]
[1754585129085,0.85191253,772.48,771.62,0.22537036]
[1754585129288,0.85191253,772.47,771.62,0.22537036]
[1754585129483,0.967,772.51,771.62,0.22537036]
[1754585129684,0.85205447,772.5,771.62,0.22537036]
[1754585129989,0.85205447,772.49,771.62,0.22537036]
[1754585130284,0.967,772.51,771.62,0.22537036]
[1754585130285,0.85205447,772.48,771.62,0.22537036]
[1754585130585,0.967,772.51,771.62,0.22537036]
[1754585131383,0.85240178,772.5,771.62,0.22537036]
[1754585131589,0.85235711,772.49,771.62,0.22537036]
[1754585131785,0.85233099,772.48,771.62,0.22537036]
[1754585131985,0.85233099,772.47,771.62,0.22537036]
[1754585132187,0.85233099,772.46,771.62,0.22537036]
[1754585132391,0.85233099,772.45,771.62,0.22537036]
[1754585132691,0.85237925,772.44,771.62,0.22537036]
[1754585132887,0.85237925,772.43,771.62,0.22537036]
[1754585133086,0.85237925,772.42,771.62,0.22537036]
[1754585133290,0.85237925,772.41,771.62,0.22537036]
[1754585133493,0.85237925,772.4,771.62,0.22537036]
[1754585133690,0.85237925,772.39,771.62,0.22537036]
[1754585133893,0.85237925,772.38,771.62,0.22537036]
[1754585134091,0.85237925,772.37,771.62,0.22537036]
[1754585134293,0.85237925,772.36,771.62,0.22537036]
[1754585134493,0.864,772.47,771.62,0.22537036]
[1754585134696,0.85247638,772.46,771.62,0.22537036]
[1754585134891,0.85247638,772.45,771.62,0.22537036]
[1754585135090,0.85247638,772.44,771.62,0.22537036]
[1754585135389,0.864,772.47,771.62,0.22537036]
[1754585135594,0.85247157,772.46,771.62,0.22537036]
[1754585135795,0.85247157,772.45,771.62,0.22537036]
[1754585135995,0.85247157,772.44,771.62,0.22537036]
[1754585136194,0.85247157,772.43,771.62,0.22537036]
[1754585136397,0.85247157,772.42,771.62,0.22537036]
[1754585136597,0.85247157,772.41,771.62,0.22537036]
[1754585136900,0.85247157,772.4,771.62,0.22537036]
[1754585137096,0.85247157,772.39,771.62,0.22537036]
[1754585137400,0.85247157,772.38,771.62,0.22537036]
[1754585137699,0.85247157,772.37,771.62,0.22537036]
[1754585137900,0.85247157,772.36,771.62,0.22537036]
[1754585138096,0.85247157,772.35,771.62,0.22537036]
[1754585138296,0.864,772.47,771.62,0.22537036]
[1754585138497,0.85245648,772.46,771.62,0.22537036]
[1754585138701,0.85245648,772.45,771.62,0.22537036]
[1754585138899,0.85245648,772.44,771.62,0.22537036]
[1754585139099,0.864,772.47,771.62,0.22537036]
[1754585139399,0.85248527,772.46,771.65,0.86896694]
[1754585139596,0.85248527,772.45,771.64,0.86896694]
[1754585139798,0.85248527,772.44,771.64,0.86896694]
[1754585140000,0.85248527,772.43,771.64,0.86896694]
[1754585140199,0.85248527,772.42,771.64,0.86896694]
[1754585140497,0.864,772.47,771.65,0.86896694]
[1754585140697,0.8526616,772.46,771.65,0.86896694]
[1754585140898,0.864,772.47,771.65,0.86896694]
[1754585140899,0.8526616,772.45,771.65,0.86896694]
[1754585141101,0.8526616,772.44,771.65,0.86896694]
[1754585141401,0.85264989,772.43,771.65,0.86896694]
[1754585141598,0.85264989,772.42,771.65,0.86896694]
[1754585141801,0.864,772.47,771.65,0.86896694]
[1754585142003,0.85275148,772.46,771.65,0.86896694]
[1754585142197,0.85275148,772.45,771.65,0.86896694]
[1754585142399,0.85275148,772.44,771.66,0.86896694]
[1754585142598,0.85275148,772.43,771.66,0.86896694]
[1754585142902,0.85275148,772.42,771.67,0.86896694]
[1754585143102,0.864,772.47,771.67,0.86896694]
[1754585143103,0.85275148,772.41,771.67,0.86896694]
[1754585143302,0.864,772.47,771.68,0.86896694]
[1754585143503,0.85265399,772.46,771.68,0.86896694]
[1754585143798,0.85265399,772.45,771.68,0.86896694]
[1754585144003,0.85265399,772.44,771.68,0.86896694]
[1754585144299,0.864,772.47,771.68,0.86896694]
[1754585144505,0.85261066,772.46,771.68,0.86896694]
[1754585144804,0.85261066,772.45,771.68,0.86896694]
[1754585145004,0.85261066,772.44,771.69,0.86896694]
[1754585145203,0.85261066,772.43,771.69,0.86896694]
[1754585145404,0.85261066,772.42,771.71,0.86896694]
[1754585145604,0.85261066,772.41,771.7,0.86896694]
[1754585145805,0.85261066,772.4,771.7,0.86896694]
[1754585146002,0.85261066,772.39,771.69,0.86896694]
[1754585146207,0.85261066,772.38,771.69,0.86896694]
[1754585146406,0.85261066,772.37,771.69,0.86896694]
[1754585146704,0.85261066,772.36,771.69,0.86896694]
[1754585146903,0.85261066,772.35,771.69,0.86896694]
[1754585147104,0.85261066,772.34,771.69,0.86896694]
[1754585147308,0.85261066,772.33,771.69,0.86896694]
[1754585147508,0.85261066,772.32,771.69,0.86896694]
[1754585147709,0.85261066,772.31,771.69,0.86896694]
[1754585147906,0.85261066,772.3,771.69,0.86896694]
[1754585148104,0.85261066,772.29,771.69,0.86896694]
[1754585148308,0.85261066,772.28,771.69,0.86896694]
[1754585148505,0.85261066,772.27,771.7,0.86896694]
[1754585148810,0.85261066,772.26,771.7,0.86896694]
[1754585149010,0.864,772.47,771.69,0.86896694]
[1754585149212,0.85285477,772.46,771.69,0.86896694]
[1754585149406,0.85285477,772.45,771.69,0.86896694]
[1754585149606,0.85285477,772.44,771.69,0.86896694]
[1754585149910,0.85285477,772.43,771.69,0.86896694]
[1754585150109,0.85285477,772.42,771.69,0.86896694]
[1754585150308,0.85285477,772.41,771.69,0.86896694]
[1754585150507,0.85285477,772.4,771.7,0.86896694]
[1754585150713,0.85285477,772.39,771.7,0.86896694]
[1754585151013,0.85285477,772.38,771.7,0.86896694]
[1754585151213,0.85285477,772.37,771.66,0.86896694]
[1754585151507,0.85285477,772.36,771.61,0.86896694]
[1754585151708,0.864,772.47,771.58,0.86896694]
[1754585151709,0.85285477,772.35,771.58,0.86896694]
[1754585151912,0.85285477,772.34,771.57,0.86896694]
[1754585152110,0.85285477,772.33,771.48,0.86896694]
[1754585152309,0.85285477,772.32,771.47,0.86896694]
[1754585152609,0.85285477,772.31,771.45,0.86896694]
[1754585152812,0.85285477,772.3,771.45,0.86896694]
[1754585153010,0.864,772.47,771.45,0.86896694]
[1754585153212,0.85250421,772.46,771.45,0.86896694]
[1754585153414,0.85250421,772.45,771.46,0.86896694]
[1754585153613,0.85250421,772.44,771.48,0.86896694]
[1754585153815,0.85250421,772.43,771.48,0.86896694]
[1754585154110,0.85250421,772.42,771.48,0.86896694]
[1754585154422,0.85250421,772.41,771.48,0.86896694]
[1754585154715,0.85250421,772.4,771.41,0.86896694]
[1754585155015,0.85250421,772.39,771.41,0.86896694]
[1754585155215,0.85250421,772.38,771.41,0.86896694]
[1754585155414,0.85250421,772.37,771.4,1.09437087]
[1754585155611,0.85250421,772.36,771.4,1.09437087]
[1754585155814,0.864,772.47,771.41,0.86896694]
[1754585155815,0.85250421,772.35,771.41,0.86896694]
[1754585156111,0.85250421,772.34,771.4,0.22540393]
[1754585156414,0.85250421,772.33,771.4,0.22540393]
[1754585156624,0.85250421,772.32,771.4,0.22540393]
[1754585156812,0.85250421,772.31,771.4,0.22540393]
[1754585157016,0.85250421,772.3,771.4,0.22540393]
[1754585157216,0.85250421,772.29,771.4,0.22540393]
[1754585157414,0.85250421,772.28,771.4,0.22540393]
[1754585157615,0.85250421,772.27,771.4,0.22540393]
[1754585157817,0.85250421,772.26,771.4,0.22540393]
[1754585158016,0.85250421,772.25,771.4,0.22540393]
[1754585158216,0.85250421,772.24,771.4,0.22540393]
[1754585158518,0.85250421,772.23,771.4,0.22540393]
[1754585158714,0.85250421,772.22,771.4,0.22540393]
[1754585159017,0.85250421,772.21,771.4,0.22540393]
[1754585159218,0.85246299,772.2,771.4,0.22540393]
[1754585159419,0.85246299,772.19,771.41,0.86896694]
[1754585159619,0.85246299,772.18,771.4,1.09437087]
[1754585159816,0.85240379,772.17,771.41,0.86896694]
[1754585160017,0.86330119,772.4,771.41,0.86896694]
[1754585160216,0.85240379,772.39,771.41,0.86896694]
[1754585160416,0.85240379,772.38,771.41,0.86896694]
[1754585160718,0.85240379,772.37,771.41,0.86896694]
[1754585160920,0.85240379,772.36,771.41,0.86896694]
[1754585161121,0.85240379,772.35,771.41,0.86896694]
[1754585161321,0.8523907,772.34,771.41,0.86896694]
[1754585161617,0.8523907,772.33,771.41,0.86896694]
[1754585161816,0.8523907,772.32,771.44,0.86896694]
[1754585162019,0.8523907,772.31,771.44,0.86896694]
[1754585162215,0.86330119,772.36,771.43,0.86896694]
[1754585162216,0.8523907,772.3,771.43,0.86896694]
[1754585162418,0.8523907,772.29,771.43,0.86896694]
[1754585162718,0.8523907,772.28,771.45,0.86896694]
[1754585162917,0.8523907,772.27,771.45,0.86896694]
[1754585163116,0.8523907,772.26,771.44,0.86896694]
[1754585163318,0.8523907,772.25,771.45,0.86896694]
[1754585163516,0.8523907,772.24,771.44,0.86896694]
[1754585163722,0.8523907,772.23,771.44,0.86896694]
[1754585163921,0.8523907,772.22,771.44,0.86896694]
[1754585164117,1.136,772.28,771.4,0.22540393]
[1754585164118,0.8523907,772.21,771.42,0.86896694]
[1754585164418,0.8523907,772.2,771.42,0.86896694]
[1754585164619,0.8523907,772.19,771.43,0.86896694]
[1754585164829,0.8523907,772.18,771.46,0.86896694]
[1754585165017,1.136,772.28,771.45,0.86896694]
[1754585165218,0.85226638,772.27,771.45,0.86896694]
[1754585165420,0.85226638,772.26,771.51,0.86896694]
[1754585165617,1.136,772.28,771.4,0.22540393]
[1754585165618,0.85226638,772.25,771.49,0.86896694]
[1754585165816,0.85226638,772.24,771.49,0.86896694]
[1754585166017,1.136,772.28,771.5,0.86896694]
[1754585166223,0.85230085,772.27,771.49,0.86896694]
[1754585166417,0.85230085,772.26,771.49,0.86896694]
[1754585166621,0.85230085,772.25,771.49,0.86896694]
[1754585166922,0.85230085,772.24,771.47,0.86896694]
[1754585167117,1.136,772.28,771.47,0.86896694]
[1754585167421,0.85231211,772.27,771.47,0.86896694]
[1754585167620,0.85231211,772.26,771.48,0.86896694]
[1754585167819,0.85231211,772.25,771.48,0.86896694]
[1754585168017,0.85231211,772.24,771.48,0.86896694]
[1754585168217,1.136,772.28,771.48,0.86896694]
[1754585168420,0.85232088,772.27,771.48,0.86896694]
[1754585168618,0.85232088,772.26,771.48,0.86896694]
[1754585168822,0.85232088,772.25,771.48,0.86896694]
[1754585169025,0.85232088,772.24,771.48,0.86896694]
[1754585169323,1.136,772.28,771.47,0.86896694]
[1754585169523,0.85233748,772.27,771.47,0.86896694]
[1754585169819,1.136,772.28,771.47,0.86896694]
[1754585170019,0.85234104,772.27,771.47,0.86896694]
[1754585170322,0.8523742,772.26,771.47,0.86896694]
[1754585170523,0.8523742,772.25,771.47,0.86896694]
[1754585170721,1.134,772.27,771.47,0.86896694]
[1754585170920,0.85237061,772.26,771.47,0.86896694]
[1754585171221,0.85237061,772.25,771.47,0.86896694]
[1754585171425,0.85240242,772.24,771.47,0.86896694]
[1754585171730,1.134,772.27,771.47,0.86896694]
[1754585172026,0.85240242,772.26,771.47,0.86896694]
[1754585172222,0.85240242,772.25,771.47,0.86896694]
[1754585172425,0.85240242,772.24,771.47,0.86896694]
[1754585172634,1.134,772.27,771.48,0.86896694]
[1754585172833,0.85243342,772.26,771.48,0.86896694]
[1754585173025,0.85243342,772.25,771.48,0.86896694]
[1754585173321,1.134,772.27,771.48,0.86896694]
[1754585173525,0.85246488,772.26,771.48,0.86896694]
[1754585173723,0.85246488,772.25,771.48,0.86896694]
[1754585173920,1.134,772.27,771.48,0.86896694]
[1754585174121,0.85247164,772.26,771.48,0.86896694]
[1754585174322,0.85247164,772.25,771.48,0.86896694]
[1754585174621,1.134,772.27,771.49,0.86896694]
[1754585174826,0.85252246,772.26,771.49,0.86896694]
[1754585175022,0.85252246,772.25,771.49,0.86896694]
[1754585175226,1.134,772.27,771.49,0.86896694]
[1754585175725,0.85255329,772.26,771.49,0.86896694]
[1754585175925,0.85255329,772.25,771.49,0.86896694]
[1754585176221,1.134,772.27,771.49,0.86896694]
[1754585176427,0.85260931,772.26,771.5,0.86896694]
[1754585176626,0.85260931,772.25,771.5,0.86896694]
[1754585176826,1.134,772.27,771.5,0.86896694]
[1754585177122,0.85260854,772.26,771.5,0.86896694]
[1754585177322,1.134,772.27,771.53,0.86896694]
[1754585177323,0.85260854,772.25,771.53,0.86896694]
[1754585177521,0.85260854,772.24,771.53,0.86896694]
[1754585177723,1.134,772.27,771.52,0.86896694]
[1754585177933,0.85267877,772.26,771.51,0.86896694]
[1754585178129,0.85267877,772.25,771.51,0.86896694]
[1754585178429,1.134,772.27,771.53,0.86896694]
[1754585178625,0.85274287,772.26,771.51,0.86896694]
[1754585178829,1.134,772.27,771.51,0.86896694]
[1754585179031,0.85266997,772.26,771.51,0.86896694]
[1754585179335,0.85266997,772.25,771.47,0.86896694]
[1754585179524,1.134,772.27,771.48,0.86896694]
[1754585179525,0.85266997,772.24,771.48,0.86896694]
[1754585179730,0.85266997,772.23,771.48,0.86896694]
[1754585180025,0.85266997,772.22,771.46,0.86896694]
[1754585180225,0.85266997,772.21,771.4,0.86896694]
[1754585180525,0.85266997,772.2,771.42,0.86896694]
[1754585180730,0.85266997,772.19,771.39,0.86896694]
[1754585180927,0.85266997,772.18,771.39,0.86896694]
[1754585181136,0.85266997,772.17,771.39,0.86896694]
[1754585181425,0.85266997,772.16,771.37,0.86896694]
[1754585181636,0.85304739,772.15,771.34,1.09439569]
[1754585181831,0.85304739,772.14,771.34,1.09439569]
[1754585182025,0.85304739,772.13,771.35,0.86896694]
[1754585182327,0.85304739,772.12,771.35,0.86896694]
[1754585182527,1.134,772.27,771.34,0.22542875]
[1754585182528,0.85304739,772.11,771.36,0.86896694]
[1754585182732,0.85304739,772.1,771.36,0.86896694]
[1754585182931,0.85304739,772.09,771.36,0.86896694]
[1754585183128,0.85304739,772.08,771.36,0.86896694]
[1754585183332,0.85304739,772.07,771.36,0.86896694]
[1754585183531,0.85304739,772.06,771.34,0.22542875]
[1754585183728,0.86330119,772.18,771.34,0.22542875]
[1754585184040,0.85357983,772.17,771.34,0.22542875]
[1754585184241,0.85357983,772.16,771.34,0.22542875]
[1754585184428,0.85357983,772.15,771.34,0.22542875]
[1754585184627,0.85357983,772.14,771.34,0.22542875]
[1754585184827,0.85357983,772.13,771.34,1.09439569]
[1754585185134,0.85357983,772.12,771.34,0.22542875]
[1754585185327,0.85357983,772.11,771.34,0.22542875]